bitfinex-derivatives/quotes_BTCF0:USTF0_20210102
["timestamp","ask_amount","ask_price","bid_price","bid_amount"]
[1609619028325,0.18043158,32336.0,32335.0,0.18043158]
[1609619029128,0.18043158,32336.0,32317.0,0.13105]
[1609619030329,0.18043158,32318.0,32317.0,0.13105]
[1609619030730,0.10534,32329.0,32300.0,0.3968]
[1609619030929,3.7637,32324.0,32300.0,0.3968]
[1609619031129,3.7637,32324.0,32300.0,0.5056]
[1609619031930,0.0937,32323.0,32300.0,0.5056]
[1609619032131,3.7637,32324.0,32300.0,0.5056]
[1609619032333,0.18043158,32301.0,32300.0,0.5056]
[1609619032532,0.18043158,32301.0,32300.0,0.2088]
[1609619032731,0.27303158,32301.0,32300.0,0.2088]
[1609619032932,0.71353158,32301.0,32300.0,0.1]
[1609619033131,0.71353158,32301.0,32295.0,2.22345473]
[1609619033132,6.18043158,32301.0,32299.0,1.7393]
[1609619033932,6.18043158,32301.0,32299.0,1.0]
[1609619034131,6.18043158,32301.0,32299.0,0.7393]
[1609619034333,0.18043158,32301.0,32299.0,0.1391]
[1609619034531,0.0915,32300.0,32299.0,0.1391]
[1609619034731,0.18043158,32301.0,32299.0,0.1391]
[1609619034936,0.10496,32300.0,32299.0,0.13720665]
[1609619035732,0.19686,32300.0,32299.0,0.04255022]
[1609619035930,0.00338276,32311.0,32299.0,0.04255022]
[1609619036332,0.00338276,32311.0,32305.0,1.0]
[1609619036931,0.15026,32315.0,32305.0,1.0]
[1609619037733,0.2878,32319.0,32305.0,1.0]
[1609619037934,0.3804,32319.0,32305.0,1.0]
[1609619038137,0.0926,32319.0,32305.0,1.0]
[1609619038334,0.0926,32319.0,32318.0,1.18043158]
[1609619038534,0.0934,32327.0,32318.0,1.18043158]
[1609619039136,0.70799696,32328.0,32318.0,1.18043158]
[1609619040435,0.70799696,32328.0,32327.0,0.18043158]
[1609619041335,0.70799696,32328.0,32315.0,0.11957]
[1609619041736,0.17285,32333.0,32305.0,0.1272]
[1609619042336,0.17285,32333.0,32318.0,0.18043158]
[1609619042538,0.17285,32333.0,32305.0,0.1272]
[1609619043236,0.17285,32333.0,32301.0,4.9264]
[1609619044238,0.093,32332.0,32301.0,4.9164]
[1609619044438,0.18043158,32302.0,32301.0,5.09683158]
[1609619044638,0.18043158,32302.0,32301.0,4.9164]
[1609619044840,0.18043158,32302.0,32294.0,1.0]
[1609619045039,0.0922,32301.0,32294.0,1.0]
[1609619045237,0.18043158,32302.0,32294.0,1.0]
[1609619045438,1.0,32310.0,32294.0,1.0]
[1609619046040,0.0936,32309.0,32299.0,0.03255022]
[1609619046437,0.18043158,32300.0,32299.0,0.03255022]
[1609619047740,0.18043158,32300.0,32299.0,0.01255022]
[1609619048141,0.18043158,32300.0,32256.0,4.4501]
[1609619048342,1.0,32299.0,32243.0,1.0]
[1609619048542,0.11151,32273.0,32243.0,1.0]
[1609619048941,0.11151,32273.0,32254.0,0.16596]
[1609619049942,0.11151,32273.0,32252.0,0.16747]
[1609619050542,0.18043158,32260.0,32252.0,0.16747]
[1609619050942,0.0941,32259.0,32252.0,0.16747]
[1609619051142,1.7546,34384.0,32252.0,0.16747]
[1609619051659,0.03255022,32288.0,32252.0,0.16747]
[1609619051843,0.0925,32299.0,32252.0,0.16747]
[1609619052052,2.85160838,32300.0,32252.0,0.16747]
[1609619052244,1.0,32299.0,32252.0,0.16747]
[1609619052449,0.18043158,32253.0,32252.0,0.16747]
[1609619052856,0.18043158,32253.0,32196.0,0.1771]
[1609619052857,0.18043158,32253.0,32211.0,4.9584]
[1609619053051,0.18043158,32253.0,32160.0,0.1771]
[1609619053249,0.18043158,32253.0,32161.0,1.0]
[1609619053444,0.16747,32247.0,32186.0,1.0]
[1609619053651,4.51114,32249.0,32186.0,1.0]
[1609619054445,4.51114,32249.0,32185.0,4.1184]
[1609619054446,0.13674,32249.0,32157.0,1.0]
[1609619054646,3.945,32232.0,32160.0,4.9725]
[1609619055045,4.05131,32232.0,32160.0,4.9725]
[1609619055254,4.7152,32215.0,32138.0,3.5785]
[1609619055646,0.2887,32214.0,32123.0,0.5331]
[1609619055846,4.7397,32191.0,32114.0,3.62877899]
[1609619056248,1.0,32171.0,32114.0,3.62877899]
[1609619056448,0.18043158,32160.0,32147.0,0.18043158]
[1609619056847,0.18043158,32160.0,32114.0,3.62877899]
[1609619057246,4.2392,32147.0,32114.0,3.62877899]
[1609619057851,4.2392,32147.0,32105.0,3.27494744]
[1609619058247,1.0,32136.0,32105.0,3.27494744]
[1609619058446,1.0,32136.0,32131.0,0.18043158]
[1609619058647,0.7031,32132.0,32131.0,0.31976158]
[1609619058847,0.7031,32132.0,32131.0,0.00666158]
[1609619059248,0.7031,32132.0,32122.0,0.06873698]
[1609619059446,1.0,32136.0,32122.0,0.06873698]
[1609619059646,1.0,32136.0,32122.0,0.17808698]
[1609619060048,4.5048,32135.0,32122.0,0.17808698]
[1609619060449,0.18043158,32123.0,32122.0,0.05808698]
[1609619060648,4.5048,32135.0,32122.0,0.05808698]
[1609619062051,0.64300726,32171.0,32093.0,4.9034]
[1609619062249,0.64300726,32171.0,32073.0,1.2419354]
[1609619062453,0.18043158,32146.0,32144.0,0.18043158]
[1609619062851,0.64300726,32171.0,32086.0,1.0]
[1609619063053,0.64300726,32171.0,32086.0,1.15541]
[1609619064454,0.64300726,32171.0,32170.0,0.18043158]
[1609619064856,0.64300726,32171.0,32170.0,0.34694158]
[1609619065256,0.73067014,32174.0,32170.0,0.34694158]
[1609619065965,0.2927,32183.0,32170.0,0.34503854]
[1609619066568,0.18043158,32178.0,32170.0,0.34503854]
[1609619066764,0.18043158,32178.0,32170.0,0.16651]
[1609619066971,0.2927,32183.0,32170.0,0.16651]
[1609619067568,0.2927,32183.0,32146.0,5.7295]
[1609619068565,0.2927,32183.0,32182.0,0.18043158]
[1609619068775,0.2927,32183.0,32182.0,0.32378158]
[1609619068963,0.2927,32183.0,32182.0,0.14335]
[1609619070564,0.2927,32183.0,32182.0,0.32378158]
[1609619070762,0.2927,32183.0,32182.0,0.22862041]
[1609619072374,0.1322,32183.0,32182.0,0.22862041]
[1609619072764,0.147,32217.0,32182.0,0.22862041]
[1609619072964,1.0,32222.0,32182.0,0.22862041]
[1609619073164,3.5577,32218.0,32182.0,0.22862041]
[1609619073567,3.5577,32218.0,32182.0,0.04818883]
[1609619073766,3.5577,32218.0,32166.0,1.0]
[1609619074367,3.5577,32218.0,32153.0,1.0]
[1609619074568,3.5577,32218.0,32217.0,0.18043158]
[1609619074767,0.44759158,32225.0,32217.0,0.18043158]
[1609619075167,0.35369158,32225.0,32217.0,0.18043158]
[1609619075368,0.17326,32225.0,32217.0,0.18043158]
[1609619075574,0.17326,32225.0,32208.0,0.1133]
[1609619076576,0.17326,32225.0,32218.0,0.18043158]
[1609619076777,0.17326,32225.0,32208.0,0.1133]
[1609619077169,4.7374,32222.0,32208.0,0.1133]
[1609619077582,0.092,32221.0,32208.0,0.1133]
[1609619077773,0.092,32221.0,32166.0,1.0]
[1609619077970,0.17326,32225.0,32166.0,1.0]
[1609619078372,0.17326,32225.0,32166.0,0.16933]
[1609619078572,0.18043158,32221.0,32216.0,0.18043158]
[1609619078772,0.092,32249.0,32216.0,0.18043158]
[1609619079171,0.44356832,32279.0,32216.0,0.18043158]
[1609619079371,3.7975,32263.0,32216.0,0.18043158]
[1609619079572,3.95112,32263.0,32216.0,0.18043158]
[1609619079772,0.15362,32263.0,32207.0,0.165]
[1609619080572,0.15362,32263.0,32229.0,0.18043158]
[1609619080972,0.15362,32263.0,32217.0,0.12929]
[1609619081873,0.0938,32262.0,32217.0,0.12929]
[1609619082073,0.15362,32263.0,32217.0,0.12929]
[1609619082473,0.15362,32263.0,32207.0,0.165]
[1609619082674,0.15362,32263.0,32210.0,0.18043158]
[1609619082873,0.15362,32263.0,32207.0,0.165]
[1609619083074,4.7535,32246.0,32207.0,0.165]
[1609619083273,4.86523,32246.0,32207.0,0.165]
[1609619083675,4.86523,32246.0,32175.0,3.4801]
[1609619084276,1.0,32204.0,32175.0,3.4801]
[1609619084475,1.0,32204.0,32166.0,0.16933]
[1609619084677,0.18043158,32186.0,32171.0,0.18043158]
[1609619084876,0.18043158,32186.0,32149.0,5.0548]
[1609619085075,0.18043158,32186.0,32111.0,1.0]
[1609619085278,0.18043158,32186.0,32127.0,1.0]
[1609619086276,0.17981,32197.0,32127.0,1.0]
[1609619086678,0.36024158,32197.0,32183.0,0.18043158]
[1609619086876,0.33724158,32197.0,32183.0,0.18043158]
[1609619087277,0.33724158,32197.0,32180.0,0.1287]
[1609619088579,0.18043158,32181.0,32180.0,0.1287]
[1609619089179,0.15681,32197.0,32180.0,0.1287]
[1609619089378,0.15681,32197.0,32173.0,0.12263]
[1609619090779,0.12887,32189.0,32173.0,0.12263]
[1609619091379,0.12887,32189.0,32166.0,0.11839]
[1609619091779,3.6625,32179.0,32126.0,0.15154]
[1609619091979,3.6625,32179.0,32121.0,4.5898]
[1609619092780,3.6625,32179.0,32153.0,0.18043158]
[1609619092981,3.6625,32179.0,32153.0,0.31215158]
[1609619093381,3.6625,32179.0,32153.0,0.13172]
[1609619093382,0.0941,32178.0,32153.0,0.13172]
[1609619093982,3.6625,32179.0,32153.0,0.13172]
[1609619094184,1.0,32172.0,32153.0,0.13172]
[1609619094482,1.14281,32172.0,32153.0,0.13172]
[1609619094884,0.18043158,32157.0,32156.0,0.18043158]
[1609619095083,0.16443158,32157.0,32156.0,0.18043158]
[1609619095483,0.15543158,32157.0,32156.0,0.18043158]
[1609619095883,0.15243158,32157.0,32156.0,0.18043158]
[1609619096084,1.09107158,32172.0,32156.0,0.18043158]
[1609619096284,0.16564,32172.0,32156.0,0.18043158]
[1609619096886,0.18043158,32159.0,32156.0,0.18043158]
[1609619097084,3.00857158,32179.0,32156.0,0.18043158]
[1609619097284,0.14594,32165.0,32156.0,0.18043158]
[1609619097485,0.14594,32165.0,32153.0,0.13172]
[1609619098087,0.14594,32165.0,32121.0,4.5898]
[1609619098286,0.0937,32164.0,32087.0,1.0]
[1609619098486,4.1682,32159.0,32088.0,4.2802]
[1609619098887,4.1682,32159.0,32125.0,0.18043158]
[1609619099088,4.1682,32159.0,32125.0,0.33073158]
[1609619099390,4.1682,32159.0,32125.0,0.1503]
[1609619100189,0.14594,32165.0,32125.0,0.1503]
[1609619100891,0.14594,32165.0,32131.0,0.18043158]
[1609619102294,0.11953,32180.0,32131.0,0.18043158]
[1609619102493,3.8203,32185.0,32131.0,0.18043158]
[1609619102894,0.18043158,32132.0,32125.0,0.1503]
[1609619103294,0.18043158,32132.0,32123.0,0.18043158]
[1609619103295,0.16576,32132.0,32123.0,0.18043158]
[1609619104297,0.13961,32140.0,32123.0,0.18043158]
[1609619104499,0.16837,32155.0,32123.0,1.18043158]
[1609619104698,1.0,32179.0,32123.0,1.34390158]
[1609619104899,1.0,32179.0,32168.0,0.18043158]
[1609619105100,1.0,32179.0,32123.0,1.16347]
[1609619105499,0.733,32179.0,32123.0,5.04397]
[1609619105899,0.44460485,32205.0,32123.0,5.04397]
[1609619107803,0.44682619,32197.0,32123.0,5.04397]
[1609619108003,0.57509619,32197.0,32123.0,5.04397]
[1609619108702,0.57509619,32197.0,32124.0,1.0]
[1609619108902,0.18043158,32155.0,32152.0,0.18043158]
[1609619109101,0.18043158,32155.0,32124.0,1.0]
[1609619109302,4.0559,32184.0,32124.0,1.0]
[1609619109701,4.0559,32184.0,32123.0,0.16347]
[1609619109901,4.0559,32184.0,32120.0,3.9013]
[1609619109902,4.0559,32184.0,32124.0,0.0921]
[1609619110103,4.0559,32184.0,32124.0,0.15929]
[1609619110901,0.18043158,32154.0,32149.0,0.18043158]
[1609619111101,0.18043158,32154.0,32149.0,0.16143148]
[1609619111502,0.11077,32161.0,32149.0,0.16143148]
[1609619112303,0.10677,32161.0,32144.0,0.16716]
[1609619112504,0.10677,32161.0,32137.0,0.12118]
[1609619112903,0.10677,32161.0,32145.0,0.18043158]
[1609619114305,3.92667,32184.0,32145.0,0.18043158]
[1609619114505,0.13025158,32187.0,32145.0,0.31279158]
[1609619114705,0.45589713,32190.0,32145.0,0.31279158]
[1609619114906,0.45589713,32190.0,32174.0,0.18043158]
[1609619115106,0.45589713,32190.0,32150.0,0.0928]
[1609619115506,0.45589713,32190.0,32151.0,0.0263]
[1609619116710,0.41659713,32190.0,32151.0,0.0263]
[1609619116912,0.18043158,32189.0,32185.0,0.18043158]
[1609619117111,0.76158271,32187.0,32185.0,0.18043158]
[1609619117711,0.68418271,32187.0,32185.0,0.18043158]
[1609619118112,0.37488271,32187.0,32186.0,0.0925]
[1609619119016,0.14496,32189.0,32185.0,0.17773413]
[1609619119414,0.55447055,32196.0,32185.0,0.17773413]
[1609619119814,0.22917055,32196.0,32185.0,0.17773413]
[1609619120016,0.20507055,32196.0,32186.0,0.0942]
[1609619120216,0.67917424,32208.0,32186.0,0.09229652]
[1609619121018,0.16533158,32207.0,32206.0,0.18043158]
[1609619121217,0.24440582,32208.0,32206.0,0.18043158]
[1609619122219,0.83306149,32217.0,32206.0,0.18043158]
[1609619122619,1.37512918,32233.0,32207.0,0.22371]
[1609619123019,1.37512918,32233.0,32232.0,0.18043158]
[1609619123225,0.2856,32233.0,32232.0,0.18043158]
[1609619123621,1.0,32243.0,32232.0,0.18043158]
[1609619123822,1.09547646,32244.0,32232.0,0.18043158]
[1609619124022,1.0981578,32252.0,32227.0,0.16397]
[1609619124421,1.06508871,32256.0,32227.0,0.16397]
[1609619125022,0.18043158,32238.0,32235.0,0.18043158]
[1609619125222,0.18043158,32238.0,32227.0,0.16397]
[1609619125421,0.14046,32242.0,32207.0,0.12941]
[1609619126120,0.11184,32254.0,32207.0,0.12941]
[1609619126521,0.11184,32254.0,32214.0,5.0893]
[1609619126721,0.92692871,32256.0,32214.0,5.21752]
[1609619126921,0.92692871,32256.0,32255.0,0.18043158]
[1609619127121,0.92692871,32256.0,32255.0,0.34897158]
[1609619127725,1.06420742,32264.0,32255.0,0.34897158]
[1609619128524,0.68410479,32295.0,32255.0,0.34897158]
[1609619129123,0.68410479,32295.0,32276.0,0.18043158]
[1609619129323,0.68410479,32295.0,32263.0,0.14415]
[1609619129523,0.11137,32295.0,32263.0,0.14415]
[1609619131323,0.11137,32295.0,32277.0,0.13198]
[1609619132525,1.06024114,32316.0,32277.0,0.13198]
[1609619134330,1.06024114,32316.0,32270.0,0.11042]
[1609619134729,1.18521114,32316.0,32270.0,0.11042]
[1609619134930,1.18521114,32316.0,32263.0,0.14415]
[1609619135130,0.18043158,32274.0,32263.0,0.14415]
[1609619135534,0.18043158,32274.0,32255.0,0.16854]
[1609619135731,0.18043158,32274.0,32231.0,5.1088]
[1609619136133,1.0,32273.0,32231.0,5.1088]
[1609619136532,1.0,32273.0,32193.0,1.0]
[1609619136732,1.0,32273.0,32206.0,4.2154]
[1609619137032,0.18043158,32250.0,32206.0,4.2154]
[1609619137832,0.1425,32256.0,32206.0,4.2154]
[1609619138033,0.14626,32263.0,32221.0,2.13462541]
[1609619138435,0.14626,32263.0,32224.0,4.2851]
[1609619138936,0.14232,32277.0,32224.0,4.2851]
[1609619139135,0.14232,32277.0,32265.0,0.18043158]
[1609619140337,1.0,32300.0,32265.0,0.18043158]
[1609619141140,1.0,32300.0,32278.0,0.18043158]
[1609619141339,0.53397334,32300.0,32278.0,0.18043158]
[1609619141740,0.12497,32316.0,32278.0,0.18043158]
[1609619141940,0.70279218,32318.0,32278.0,0.18043158]
[1609619142341,0.2779,32324.0,32278.0,0.18043158]
[1609619143141,0.2779,32324.0,32292.0,0.18043158]
[1609619143341,0.2779,32324.0,32289.0,0.14017]
[1609619143541,0.40559,32324.0,32277.0,0.12025]
[1609619143743,1.0,32298.0,32282.0,1.0]
[1609619143941,1.13035,32298.0,32282.0,1.0]
[1609619145142,0.18043158,32283.0,32282.0,1.0]
[1609619145343,0.33902158,32283.0,32282.0,1.0]
[1609619145744,0.33902158,32283.0,32266.0,0.18043158]
[1609619146246,0.15859,32283.0,32266.0,0.18043158]
[1609619147145,0.15859,32283.0,32282.0,0.18043158]
[1609619147344,0.15859,32283.0,32282.0,0.17853143]
[1609619147744,0.15859,32283.0,32282.0,1.17853143]
[1609619148746,0.13035,32298.0,32282.0,1.17853143]
[1609619149145,1.0,32306.0,32296.0,0.18043158]
[1609619149747,1.0,32319.0,32297.0,1.0]
[1609619151649,0.12769,32324.0,32287.0,3.9235]
[1609619152250,0.46893774,32359.0,32287.0,3.9235]
[1609619152850,0.46820811,32357.0,32287.0,3.9235]
[1609619153149,0.46820811,32357.0,32311.0,0.18043158]
[1609619153550,0.46820811,32357.0,32290.0,0.17185]
[1609619153752,0.46898809,32362.0,32287.0,3.9235]
[1609619154050,0.44722,32330.0,32287.0,3.9235]
[1609619155150,0.18043158,32324.0,32319.0,0.18043158]
[1609619157256,0.18043158,32324.0,32323.0,0.18043158]
[1609619157656,0.18043158,32324.0,32306.0,0.14516]
[1609619158656,0.18043158,32324.0,32287.0,3.9235]
[1609619159157,0.16142,32330.0,32320.0,0.18043158]
[1609619159358,0.272,32353.0,32291.0,0.11402]
[1609619161161,0.18043158,32302.0,32301.0,0.18043158]
[1609619161361,0.18043158,32302.0,32284.0,0.12311]
[1609619161564,0.30657158,32302.0,32284.0,0.12311]
[1609619161763,0.30657158,32302.0,32295.0,1.0]
[1609619162363,0.12614,32302.0,32295.0,1.0]
[1609619163166,0.12614,32302.0,32301.0,0.18043158]
[1609619163567,0.12614,32302.0,32301.0,6.18043158]
[1609619163769,0.2721,32327.0,32301.0,6.18043158]
[1609619164069,1.0,32337.0,32301.0,6.18043158]
[1609619164670,1.0,32337.0,32301.0,6.98601158]
[1609619164869,1.0,32337.0,32301.0,6.28891158]
[1609619165169,1.0,32337.0,32336.0,0.18043158]
[1609619165569,0.18043158,32339.0,32336.0,0.18043158]
[1609619165972,1.0,32413.0,32336.0,0.18043158]
[1609619166171,0.2971,32382.0,32336.0,0.18043158]
[1609619166770,0.47024829,32357.0,32336.0,0.18043158]
[1609619166983,0.59716829,32357.0,32336.0,0.18043158]
[1609619167777,0.12692,32357.0,32336.0,0.18043158]
[1609619169177,0.12692,32357.0,32349.0,0.18043158]
[1609619170076,0.12692,32357.0,32326.0,0.10479]
[1609619170475,0.12692,32357.0,32311.0,0.13426]
[1609619170877,0.12692,32357.0,32309.0,4.7012]
[1609619171279,0.12692,32357.0,32348.0,0.18043158]
[1609619171479,0.12692,32357.0,32324.0,0.13068]
[1609619172079,0.03,32384.0,32324.0,0.13068]
[1609619173181,0.03,32384.0,32365.0,0.18043158]
[1609619173380,0.2795,32386.0,32365.0,0.18043158]
[1609619173582,1.0,32381.0,32365.0,0.18043158]
[1609619175286,1.0,32381.0,32375.0,0.18043158]
[1609619175686,0.18043158,32389.0,32375.0,1.18043158]
[1609619175887,1.0,32403.0,32375.0,1.18043158]
[1609619176288,1.0,32403.0,32375.0,1.0]
[1609619177188,3.18043158,32376.0,32375.0,1.0]
[1609619178189,3.18043158,32376.0,32375.0,0.99810361]
[1609619178388,3.18043158,32376.0,32370.0,0.18043158]
[1609619178588,3.11311,32376.0,32370.0,0.18043158]
[1609619179187,3.11311,32376.0,32375.0,0.18043158]
[1609619180489,3.0,32376.0,32375.0,0.18043158]
[1609619181089,2.0654,32376.0,32375.0,0.18043158]
[1609619182492,1.5411,32376.0,32375.0,0.18043158]
[1609619183301,1.5411,32376.0,32375.0,3.79743158]
[1609619184102,1.3151,32376.0,32375.0,3.79743158]
[1609619184297,1.3151,32376.0,32375.0,0.18043158]
[1609619186703,1.3151,32376.0,32375.0,6.18043158]
[1609619187505,1.1809,32376.0,32375.0,6.18043158]
[1609619188607,1.1809,32376.0,32375.0,0.18043158]
[1609619189614,1.1809,32376.0,32375.0,0.70753158]
[1609619189810,0.8896,32376.0,32375.0,0.18043158]
[1609619191212,0.60560629,32376.0,32375.0,0.18043158]
[1609619192513,0.60560629,32376.0,32375.0,6.18043158]
[1609619192912,1.2819,32432.0,32384.0,4.6807]
[1609619193314,1.2819,32432.0,32428.0,0.18043158]
[1609619193514,1.2819,32432.0,32398.0,0.12778]
[1609619193713,1.42653,32432.0,32398.0,0.12778]
[1609619194414,1.42653,32432.0,32389.0,3.6809]
[1609619194618,1.0,32430.0,32414.0,1.0]
[1609619195216,1.0,32430.0,32397.0,5.0]
[1609619195417,0.18043158,32415.0,32397.0,5.0]
[1609619195616,0.35165158,32415.0,32395.0,0.18043158]
[1609619196017,0.35165158,32415.0,32389.0,3.6809]
[1609619197318,0.17122,32415.0,32412.0,0.18043158]
[1609619197517,0.17122,32415.0,32389.0,3.6809]
[1609619199320,0.17122,32415.0,32414.0,0.18043158]
[1609619200622,0.18043158,32417.0,32414.0,0.18043158]
[1609619201030,0.32856158,32417.0,32389.0,3.6809]
[1609619201424,0.14813,32417.0,32389.0,3.6809]
[1609619203423,0.14813,32417.0,32414.0,0.18043158]
[1609619204026,0.14813,32417.0,32404.0,5.0737]
[1609619205326,0.14813,32417.0,32416.0,0.18043158]
[1609619206126,0.18043158,32421.0,32416.0,0.18043158]
[1609619207431,0.18043158,32417.0,32416.0,0.18043158]
[1609619207631,1.29063158,32417.0,32416.0,0.18043158]
[1609619208933,1.1102,32417.0,32416.0,0.18043158]
[1609619209535,0.1102,32417.0,32416.0,0.18043158]
[1609619212941,0.18043158,32426.0,32416.0,0.18043158]
[1609619213343,0.18043158,32426.0,32424.0,0.18043158]
[1609619215445,0.18043158,32426.0,32418.0,0.18043158]
[1609619215645,1.18043158,32426.0,32418.0,0.18043158]
[1609619216847,1.0,32426.0,32418.0,0.18043158]
[1609619217447,1.0,32426.0,32425.0,0.18043158]
[1609619217647,0.14463,32432.0,32425.0,0.18043158]
[1609619217848,0.2975,32442.0,32425.0,0.18043158]
[1609619218849,0.2975,32442.0,32409.0,4.5826]
[1609619219049,0.46856,32442.0,32394.0,0.11323]
[1609619219250,0.46856,32442.0,32387.0,4.74055]
[1609619219450,0.46856,32442.0,32406.0,0.18043158]
[1609619219651,0.46856,32442.0,32387.0,4.74055]
[1609619221453,5.0,32422.0,32407.0,0.18043158]
[1609619221653,5.11403,32422.0,32407.0,0.18043158]
[1609619221855,5.11403,32422.0,32387.0,4.74055]
[1609619222655,5.11403,32422.0,32387.0,4.5963]
[1609619223555,0.11403,32422.0,32387.0,4.5963]
[1609619224356,3.0,32420.0,32387.0,4.5963]
[1609619225358,3.0,32420.0,32398.0,0.18043158]
[1609619225656,5.0,32404.0,32398.0,0.18043158]
[1609619225856,5.10604,32404.0,32387.0,4.5963]
[1609619226056,5.10604,32404.0,32372.0,0.14463]
[1609619226456,5.10604,32404.0,32364.0,2.02974268]
[1609619227458,0.18043158,32371.0,32369.0,0.18043158]
[1609619227659,1.18043158,32371.0,32359.0,2.03423532]
[1609619228059,1.18043158,32371.0,32344.0,2.03456765]
[1609619228459,1.18043158,32371.0,32333.0,2.03509052]
[1609619229360,1.0,32371.0,32349.0,0.18043158]
[1609619229560,0.16573,32372.0,32349.0,0.18043158]
[1609619231465,0.16573,32372.0,32356.0,0.18043158]
[1609619232672,0.48202451,32392.0,32356.0,0.18043158]
[1609619233076,0.48202451,32392.0,32358.0,5.086]
[1609619233476,0.58220221,32392.0,32391.0,0.18043158]
[1609619234967,1.0,32398.0,32391.0,0.18043158]
[1609619235569,0.49166358,32409.0,32397.0,0.18043158]
[1609619237575,0.49166358,32409.0,32408.0,0.18043158]
[1609619238475,0.58996353,32411.0,32408.0,0.18043158]
[1609619239478,1.0,32419.0,32408.0,0.18043158]
[1609619240980,1.0,32419.0,32389.0,0.14333]
[1609619241581,3.0,32420.0,32412.0,0.18043158]
[1609619242583,3.0,32420.0,32400.0,4.3772]
[1609619243484,3.0,32420.0,32415.0,0.18043158]
[1609619244085,3.0,32420.0,32400.0,4.3772]
[1609619245587,0.18043158,32401.0,32400.0,4.3772]
[1609619245789,0.33090158,32401.0,32400.0,4.3772]
[1609619246387,0.15047,32401.0,32400.0,4.3772]
[1609619247490,0.15047,32401.0,32400.0,4.55763158]
[1609619248790,3.0,32420.0,32400.0,4.55763158]
[1609619248993,3.0,32420.0,32400.0,0.18043158]
[1609619249191,3.0,32420.0,32400.0,4.15513158]
[1609619249494,3.0,32420.0,32419.0,0.18043158]
[1609619250093,3.0,32420.0,32392.0,0.10495]
[1609619251496,0.18043158,32415.0,32413.0,0.18043158]
[1609619251896,0.35089158,32415.0,32413.0,0.18043158]
[1609619252097,0.17046,32415.0,32413.0,0.18043158]
[1609619252696,0.17046,32415.0,32392.0,0.10495]
[1609619252897,0.17046,32415.0,32380.0,2.05264193]
[1609619253497,0.17046,32415.0,32413.0,0.18043158]
[1609619254599,0.17046,32415.0,32399.0,4.8106]
[1609619254999,0.17046,32415.0,32400.0,0.00036461]
[1609619255497,0.17046,32415.0,32408.0,0.18043158]
[1609619255697,0.17046,32415.0,32401.0,0.00036462]
[1609619256899,3.0,32420.0,32401.0,0.00036462]
[1609619257500,5.0,32417.0,32403.0,0.18043158]
[1609619257801,0.02220293,32416.0,32404.0,0.00036462]
[1609619259502,1.18043158,32405.0,32404.0,0.00036462]
[1609619259705,1.33885158,32405.0,32404.0,0.00036462]
[1609619259903,1.33923225,32405.0,32404.0,0.00072926]
[1609619260102,1.33923225,32405.0,32388.0,4.327]
[1609619260302,1.33923225,32405.0,32357.0,2.98616353]
[1609619260507,0.00038072,32404.0,32389.0,0.00036468]
[1609619260704,0.02220837,32404.0,32389.0,0.00036468]
[1609619260905,0.02220837,32404.0,32390.0,0.00036474]
[1609619261505,0.18043158,32391.0,32390.0,0.00036474]
[1609619261906,0.31033158,32391.0,32390.0,0.00036474]
[1609619262108,0.31071242,32391.0,32390.0,0.00036474]
[1609619263308,0.13028084,32391.0,32390.0,0.00036474]
[1609619263509,0.31071242,32391.0,32390.0,0.00036474]
[1609619264211,0.13028084,32391.0,32390.0,0.00036474]
[1609619265512,1.31071242,32391.0,32390.0,0.00036474]
[1609619266411,1.31071242,32391.0,32369.0,3.8747]
[1609619266613,4.2843,32389.0,32343.0,6.5949942]
[1609619267011,0.00038094,32388.0,32357.0,0.0003649]
[1609619267211,0.00076191,32388.0,32357.0,0.0003649]
[1609619267613,6.34459158,32358.0,32357.0,0.0003649]
[1609619268013,6.34497261,32358.0,32357.0,0.0003649]
[1609619269214,6.34497261,32358.0,32324.0,2.05194051]
[1609619269415,6.34497261,32358.0,32333.0,0.00036505]
[1609619269615,0.00038114,32357.0,32340.0,0.18043158]
[1609619271120,0.00038114,32357.0,32333.0,0.00036505]
[1609619271518,1.18043158,32334.0,32333.0,0.00036505]
[1609619271718,1.31275158,32334.0,32333.0,0.00036505]
[1609619271917,1.31275158,32334.0,32333.0,0.00073012]
[1609619272319,1.13232,32334.0,32333.0,0.00073012]
[1609619273523,0.13232,32334.0,32333.0,0.00073012]
[1609619273720,0.13232,32334.0,32333.0,0.1811617]
[1609619276824,0.18043158,32342.0,32333.0,0.1811617]
[1609619277025,0.00038114,32357.0,32333.0,0.1811617]
[1609619277627,0.18043158,32353.0,32352.0,0.18043158]
[1609619278043,0.00038114,32357.0,32352.0,0.18043158]
[1609619279330,0.00038114,32357.0,32333.0,0.00073012]
[1609619279531,1.0,32353.0,32333.0,0.00073012]
[1609619279732,0.18043158,32347.0,32343.0,0.18043158]
[1609619279931,0.33839158,32347.0,32343.0,0.18043158]
[1609619280331,0.15796,32347.0,32343.0,0.18043158]
[1609619281733,0.18043158,32344.0,32333.0,0.00073012]
[1609619283734,0.18043158,32344.0,32337.0,0.18043158]
[1609619284433,0.18043158,32344.0,32333.0,0.00073012]
[1609619285738,0.18043158,32334.0,32333.0,0.00073012]
[1609619285937,0.29275158,32334.0,32333.0,0.00073012]
[1609619288740,4.57365158,32334.0,32318.0,0.00036507]
[1609619288940,4.5740328,32334.0,32318.0,0.00036507]
[1609619289141,0.00038128,32333.0,32318.0,0.00036507]
[1609619289542,6.0,32319.0,32318.0,0.00036507]
[1609619289741,6.29568158,32319.0,32318.0,0.00036507]
[1609619289942,6.29606291,32319.0,32318.0,0.00036507]
[1609619290143,6.29606291,32319.0,32286.0,0.47419459]
[1609619290342,4.8709,32312.0,32286.0,0.47419459]
[1609619290545,4.98926,32312.0,32286.0,0.47419459]
[1609619290743,0.00038142,32311.0,32286.0,0.47419459]
[1609619291744,0.18043158,32287.0,32286.0,0.47419459]
[1609619291945,0.29069158,32287.0,32286.0,0.47419459]
[1609619292146,0.29069158,32287.0,32275.0,2.59384221]
[1609619292147,0.29107312,32287.0,32256.0,2.03630289]
[1609619292546,0.0003816,32286.0,32257.0,0.00036457]